{"text_format":"1","workbook":"xlsx","n_sheets":3,"sheets":["Redukcja emisji","Instrukcja","OBLICZENIA"],"not_rendered":{"charts":0,"images":0,"macros":1,"external_links":0,"defined_names":8,"comments":0,"pivot_tables":0},"unopened":[],"bounds":{"document_bytes":16777216,"sheet_cells":100000,"rows_first":2000,"rows_last":500,"rows_between":2000,"halvings":0,"cell_chars":16384,"cell_head_chars":4096},"cells_cut":0,"cells_raw":0,"read":"whole","date_system":"1900"}

{"sheet":"Redukcja emisji","index":0,"n_rows":34,"n_cols":10,"rows_kept":34,"cut":false,"hidden":false,"merged":[[27,1,27,7],[26,1,26,7],[12,1,12,7],[25,1,25,9],[1,1,1,9],[11,1,11,4],[3,1,3,9],[7,1,7,9],[13,1,13,9],[6,3,6,9],[5,3,5,9],[4,3,4,9],[6,1,6,2],[5,1,5,2],[4,1,4,2],[8,1,8,3],[9,1,9,4],[10,1,10,4]]}
[]
[null,"Program Ograniczenia Niskiej Emisji dla Miasta Olsztyna"]
[]
[null,"DANE WNIOSKODAWCY"]
[null,"NAZWA WNIOSKODAWCY:"]
[null,"   adres Wnioskodawcy:"]
[null,"   adres budynku:"]
[null,"INFORMACJE O PROJEKCIE"]
[null,"RODZAJ MODERNIZACJI:"]
[]
[]
[]
[null,"SUMA POWIERZCHNI OGRZEWANEJ BUDYNKU",null,null,null,null,null,null,0,"m2"]
[null,"ZAPOTRZEBOWANIE NA ENERGIĘ W BUDYNKU"]
[null,"ZAPOTRZEBOWANIE NA ENERGIĘ PRZED MODERNIZACJĄ"]
[null,null,"OLEJ OPAŁOWY",null,null,null,null,null,0,"GJ / rok"]
[null,null,"GAZ ZIEMNY",null,null,null,null,null,0,"GJ / rok"]
[null,null,"GAZ PŁYNNY (LPG)",null,null,null,null,null,0,"GJ / rok"]
[null,null,"WĘGIEL",null,null,null,null,null,0,"GJ / rok"]
[null,null,"BIOMASA",null,null,null,null,null,0,"GJ / rok"]
[null,null,"ENERGIA ELEKTRYCZNA",null,null,null,null,null,0,"GJ / rok"]
[null,"ZAPOTRZEBOWANIE NA ENERGIĘ PO MODERNIZACJI"]
[null,null,"MIEJSKA SIEĆ CIEPŁOWNICZA",null,null,null,null,null,0,"GJ / rok"]
[null,null,"GAZ ZIEMNY",null,null,null,null,null,0,"GJ / rok"]
[null,null,"POMPA CIEPŁA",null,null,null,null,null,0,"GJ / rok"]
[null,"REDUKCJA EMISJI PYŁU PM10"]
[null,"REDUKCJA EMISJI",null,null,null,null,null,null,{"$f":"IF(SUM(OBLICZENIA!Q31:Q33)>1,\"BŁĄD!\", OBLICZENIA!P23/1000)","v":0},"kg/(rok)"]
[null,"REDUKCJA EMISJI NA JEDNOSTKĘ POWIERZCHNI OGRZEWANEJ",null,null,null,null,null,null,{"$f":"IFERROR(I27/(I13), 0)","v":0},"kg/(rok m2)"]
[]
[]
[]
[]
[]
[null,null,null,null,null,null,"podpis"]

{"sheet":"Instrukcja","index":1,"n_rows":1,"n_cols":1,"rows_kept":1,"cut":false,"hidden":false,"merged":[[0,0,36,6]]}
["INSTRUKCJA\n\nPoprawne wypełnienie Formularza ekologicznego możliwe jest tylko i wyłącznie poprzez uzupełnienie komórek zaznaczonych kolorem. \n\nUWAGA: wszystkie dane umieszczane w Formularzu muszą być zgodne z Wnioskiem o udzielenie dotacji oraz załącznonym do Wniosku audytem energetycznym.\n\nW pierwszej kolejności należy wypełnić Dane Wnioskodawcy.\n \nW części Informacje o Projekcie należy zaznaczyć rodzaj planowanej modernizacji. Możliwe jest wskazanie tyko jednego źródła ciepła. \n\nKolejnym krokiem jest wskazanie powierzchni ogrzewanej części mieszkalnej budynku oraz powierzchni wyłączonej z Programu, tj. powierzchni ogrzewanej lokali użytkowych oraz powierzchni ogrzewanej należącej do zasobu Gminy. \n\nW części Zapotrzebowanie na energię w budynku należy wskazać zapotrzebowanie na energię przed modernizacją i po modernizacji uwzględniając rodzaj stosowanego paliwa. W przypadku, gdy w budynku stosowany jest więcej niż jeden rodzaj paliwa należy zastosować procentowy udział danego nośnika w sumie użytkowanej energii.\n\nWielkość redukcji emisji pyłu PM10 wyliczy się automatycznie po prawidłowym wypełnieniu wszystkich wymaganych danych.\n\nWypełniony Formularz wraz z wyliczoną wielkością redukcji emisji pyłów PM10 należy wydrukować i załączyć do Wniosku o udzielenie dotacji.\n\nPróby zmian w arkuszach mogą zaburzyć wyniki obliczeń efektu ekologicznego i są niedozwolone!\n"]

{"sheet":"OBLICZENIA","index":2,"n_rows":33,"n_cols":17,"rows_kept":33,"cut":false,"hidden":true,"merged":[[32,3,32,6],[29,3,29,6],[30,3,30,6],[31,3,31,6],[30,12,30,14],[31,12,31,14],[32,12,32,14],[4,3,4,4],[7,14,7,16],[26,3,26,6],[27,3,27,6],[28,3,28,6],[22,3,24,6],[22,7,24,7],[22,8,24,8],[7,4,8,4],[7,5,7,7],[7,8,7,10],[7,11,7,13],[25,3,25,6],[7,3,8,3]]}
[]
[]
[null,null,null,null,null,"msc","gaz ","pompa ciepła"]
[null,null,null,"zapotrzebowanie na energię po modernizacji",null,{"$f":"'Redukcja emisji'!I23","v":0},{"$f":"'Redukcja emisji'!I24","v":0},{"$f":"'Redukcja emisji'!I25","v":0}]
[null,null,null,"wskaźnik emisji po modernizacji",null,0,1.2,0]
[]
[]
[null,null,null,"Paliwo","zapotrzebowanie na energię przed modernizacją (GJ)","wskaźniki efektu ekologicznego [g/GJ]",null,null,"efekt ekologiczny [g]",null,null,"efekt ekologiczny [g]",null,null,"emisje [g] - przypadek teoretyczny dla braku zużycia po modernizacji"]
[null,null,null,null,null,"msc","gaz ","pompa ciepła","msc","gaz ","pompa ciepła","msc","gaz ","pompa ciepła","msc","gaz ","pompa ciepła"]
[null,null,null,"Lekki olej opałowy",{"$f":"'Redukcja emisji'!I16","v":0},1.9,0.70000000000000007,1.9,{"$f":"$E10*F10","v":0},0,0,{"$f":"IF(F$4=0, 0, I10)","v":0},{"$f":"IF(G$4=0, 0, J10)","v":0},0,{"$f":"F10*$E10","v":0},0,0]
[null,null,null,"Gaz ziemny",{"$f":"'Redukcja emisji'!I17","v":0},1.2,0,1.2,0,0,0,{"$f":"IF(F$4=0, 0, I11)","v":0},{"$f":"IF(G$4=0, 0, J11)","v":0},{"$f":"IF(H$4=0, 0, K11)","v":0},0,0,0]
[null,null,null,"Gaz płynny",{"$f":"'Redukcja emisji'!I18","v":0},1.2,0,1.2,0,0,0,0,0,0,0,0,0]
[null,null,null,"Węgiel kamienny",{"$f":"'Redukcja emisji'!I19","v":0},{"$f":"IF(E21=0, 0, H33/E21*1000)","v":1377.7120064830215},{"$f":"F13-G5","v":1376.5120064830214},{"$f":"F13","v":1377.7120064830215},{"$f":"$E13*F13","v":0},{"$f":"$E13*G13","v":0},0,0,0,0,0,0,0]
[null,null,null,"Biomasa",{"$f":"'Redukcja emisji'!I20","v":0},{"$f":"IF(E21=0, 0, I33/E21*1000)","v":781.42478552701925},{"$f":"F14-G5","v":780.22478552701921},{"$f":"F14","v":781.42478552701925},0,0,0,0,0,0,0,0,0]
[null,null,null,"Energia elektryczna",{"$f":"'Redukcja emisji'!I21","v":0},0,-1.2,0,0,0,0,0,0,0,0,0,0]
[null,null,null,"Inny……………………………",0,0,-1.2,0,0,0,0,0,0,0,0,0,0]
[null,null,null,null,null,null,null,null,null,null,null,null,"SUMA",{"$f":"IF(G4=0, SUM(L10:N16), SUM(L10:N16)+(SUM(E10:E16)-G4)*G5)","v":0},null,"SUMA",{"$f":"IF(SUM(Q31:Q33)>1, 0, IF(OBLICZENIA!P31=TRUE,SUM(O10:O16),IF(OBLICZENIA!P32=TRUE,SUM(P10:P16)+(SUM(E10:E16)-G4)*G5,IF(OBLICZENIA!P33=TRUE,SUM(Q10:Q16), 0))))","v":0}]
[]
[]
[null,null,null,null,"[GJ/m2]","[kWh/m2]",null,null,null,null,null,null,null," "]
[null,null,null,"średnie zapotrzebowanie",0.83181390204000005,{"$f":"E21*1000/3.6","v":231.05941723333333}]
[]
[null,null,null,"Efekt ekologiczny na 1 m2 ogrzewanej powierzchni mieszkalnej",null,null,null,"Węgiel [kg PM10/rok]","Drewno [kg PM10/rok]",null,null,null,null,null,"WYNIK",{"$f":"IF(AND('Redukcja emisji'!I23<SUM('Redukcja emisji'!I23:I25), 'Redukcja emisji'!I24<SUM('Redukcja emisji'!I23:I25), 'Redukcja emisji'!I25<SUM('Redukcja emisji'!I23:I25)), \"\", IF(SUM(F4:H4)>0,N17,Q17))","v":0},"g/rok"]
[null,null,null,null,null,null,null,null,null,null,null,null,null,null,null,{"$f":"P23/1000","v":0},"kg/rok"]
[null,null,null,null,null,null,null,null,null,null,null,null,null,null,null,{"$f":"P24/1000","v":0},"t/rok"]
[null,null,null,"Zastosowanie koksu",null,null,null,1.0547,0.55869999999999997,null,null,null,null,null,null,{"$f":"'Redukcja emisji'!I13","v":0}]
[null,null,null,"Wymiana na piec olejowy",null,null,null,1.1298000000000001,0.63380000000000003]
[null,null,null,"Wymiana na piec gazowy - gaz ziemny",null,null,null,1.1457999999999999,0.64980000000000004,null,null,null,null,null,null,{"$f":"IFERROR(P23/1000/P26, 0)","v":0},"kg/m2"]
[null,null,null,"Wymiana na piec gazowy - LPG",null,null,null,1.1456,0.64959999999999996]
[null,null,null,"Wymiana na piec retortowy - ekogroszek",null,null,null,1.1086,0.61260000000000003]
[null,null,null,"Wymiana na piec retorotwy - pelety",null,null,null,1.1423999999999999,0.64639999999999997,null,null,null,"przyłączenie do msc",null,null,false,{"$f":"IF(OBLICZENIA!P31=TRUE, 1, 0)","v":0}]
[null,null,null,"Wymiana na ogrzewanie elektryczne",null,null,null,1.1459999999999999,0.65,null,null,null,"kocioł zasilany gazem sieciowym",null,null,false,{"$f":"IF(OBLICZENIA!P32=TRUE, 1, 0)","v":0}]
[null,null,null,"Przyłączenie do ciepła sieciowego",null,null,null,1.1459999999999999,0.65,null,null,null,"pompa ciepła",null,null,false,{"$f":"IF(OBLICZENIA!P33=TRUE, 1, 0)","v":0}]